[Event "Late-Titled-Tuesday-Blitz-September-05-2023"]
[Site "Chess.com"]
[Date "2023.09.05"]
[Round "4"]
[White "Lady_Nika"]
[Black "Javylavilla"]
[Result "1-0"]
[WhiteElo "2481"]
[BlackElo "2302"]
[TimeControl "180+1"]
[EndTime "14:38:06 PDT"]
[Termination "Lady_Nika won by resignation"]

1. c4 {[%clk 0:03:00.9]} 1... Nf6 {[%clk 0:02:59.1]} 2. Nc3 {[%clk 0:03:00.9]}
2... g6 {[%clk 0:02:58.4]} 3. d4 {[%clk 0:03:01.1]} 3... Bg7 {[%clk 0:02:56.9]}
4. e4 {[%clk 0:03:01.3]} 4... d6 {[%clk 0:02:57]} 5. f3 {[%clk 0:03:01.3]} 5...
O-O {[%clk 0:02:56.2]} 6. Be3 {[%clk 0:03:01.5]} 6... c6 {[%clk 0:02:56.2]} 7.
Qd2 {[%clk 0:03:01.5]} 7... a6 {[%clk 0:02:56.6]} 8. Bd3 {[%clk 0:03:01.5]} 8...
b5 {[%clk 0:02:56.7]} 9. Nge2 {[%clk 0:02:59.8]} 9... e5 {[%clk 0:02:54.7]} 10.
d5 {[%clk 0:02:56.9]} 10... bxc4 {[%clk 0:02:54.2]} 11. Bxc4 {[%clk 0:02:57.1]}
11... c5 {[%clk 0:02:50.4]} 12. b3 {[%clk 0:02:55.1]} 12... Nbd7 {[%clk
0:02:50.1]} 13. Na4 {[%clk 0:02:53]} 13... Nb6 {[%clk 0:02:45.2]} 14. Nxb6
{[%clk 0:02:52.9]} 14... Qxb6 {[%clk 0:02:46.1]} 15. a3 {[%clk 0:02:53.2]} 15...
a5 {[%clk 0:02:45.5]} 16. O-O {[%clk 0:02:50.6]} 16... Ba6 {[%clk 0:02:42.4]}
17. Rfb1 {[%clk 0:02:50.5]} 17... Bxc4 {[%clk 0:02:36.2]} 18. bxc4 {[%clk
0:02:50.4]} 18... Qc7 {[%clk 0:02:36.8]} 19. Rb5 {[%clk 0:02:50.3]} 19... Nd7
{[%clk 0:02:35]} 20. Rab1 {[%clk 0:02:49.1]} 20... f5 {[%clk 0:02:34.6]} 21. Nc3
{[%clk 0:02:48.1]} 21... f4 {[%clk 0:02:33.1]} 22. Bf2 {[%clk 0:02:47.7]} 22...
g5 {[%clk 0:02:33.5]} 23. Rb7 {[%clk 0:02:45.7]} 23... Qd8 {[%clk 0:02:32.5]}
24. Nb5 {[%clk 0:02:45.5]} 24... Rf6 {[%clk 0:02:24.1]} 25. Nc7 {[%clk
0:02:44.8]} 25... Rc8 {[%clk 0:02:23.1]} 26. Ne6 {[%clk 0:02:44.6]} 26... Qe8
{[%clk 0:02:18.8]} 27. h3 {[%clk 0:02:41.6]} 27... h5 {[%clk 0:02:18.1]} 28.
Qxa5 {[%clk 0:02:41.4]} 28... g4 {[%clk 0:02:16.6]} 29. hxg4 {[%clk 0:02:41.4]}
29... hxg4 {[%clk 0:02:16.7]} 30. Qa7 {[%clk 0:02:33.2]} 30... Rf7 {[%clk
0:01:58.2]} 31. Bh4 {[%clk 0:02:22.9]} 31... Ra8 {[%clk 0:01:56.9]} 32. Rxd7
{[%clk 0:02:11.5]} 32... Rxa7 {[%clk 0:01:54.1]} 33. Rd8 {[%clk 0:02:11.4]}
33... Qxd8 {[%clk 0:01:53.9]} 34. Nxd8 {[%clk 0:02:09.8]} 34... Rfd7 {[%clk
0:01:48.9]} 35. Rb8 {[%clk 0:02:03.7]} 35... Kh7 {[%clk 0:01:48.3]} 36. fxg4
{[%clk 0:02:02.6]} 36... Rxa3 {[%clk 0:01:47.2]} 37. Ne6 {[%clk 0:02:01.2]}
37... Rc3 {[%clk 0:01:32.9]} 38. Kh2 {[%clk 0:01:54.6]} 38... Rxc4 {[%clk
0:01:32.2]} 39. Kh3 {[%clk 0:01:42.6]} 39... Rxe4 {[%clk 0:01:31.4]} 40. Ng5+
{[%clk 0:01:42.3]} 40... Kg6 {[%clk 0:01:27.2]} 41. Nxe4 {[%clk 0:01:43.1]}
41... Ra7 {[%clk 0:01:23.8]} 42. Nxd6 {[%clk 0:01:41.3]} 42... Rd7 {[%clk
0:01:19.7]} 43. Rb6 {[%clk 0:01:39.2]} 43... Kh7 {[%clk 0:01:18]} 44. Rc6 {[%clk
0:01:38.8]} 44... c4 {[%clk 0:01:17.5]} 45. g5 {[%clk 0:01:33.6]} 45... c3
{[%clk 0:01:16.1]} 46. Nf5 {[%clk 0:01:33.6]} 46... Bh8 {[%clk 0:01:10.1]} 47.
g6+ {[%clk 0:01:32.5]} 1-0

[Event "Late-Titled-Tuesday-Blitz-September-05-2023"]
[Site "Chess.com"]
[Date "2023.09.05"]
[Round "4"]
[White "Chessbard1972"]
[Black "rickywsb"]
[Result "1-0"]
[WhiteElo "2510"]
[BlackElo "2370"]
[TimeControl "180+1"]
[EndTime "14:38:12 PDT"]
[Termination "Chessbard1972 won by resignation"]

1. d4 {[%clk 0:03:00.9]} 1... d5 {[%clk 0:03:00]} 2. c4 {[%clk 0:03:00.1]} 2...
c6 {[%clk 0:03:00.3]} 3. Nf3 {[%clk 0:02:59.6]} 3... Nf6 {[%clk 0:03:00.6]} 4.
Nc3 {[%clk 0:02:59.2]} 4... e6 {[%clk 0:03:00.7]} 5. Bg5 {[%clk 0:02:57.6]} 5...
Nbd7 {[%clk 0:02:57.5]} 6. cxd5 {[%clk 0:02:57.1]} 6... exd5 {[%clk 0:02:55.5]}
7. e3 {[%clk 0:02:57.6]} 7... h6 {[%clk 0:02:49.9]} 8. Bh4 {[%clk 0:02:53.4]}
8... g5 {[%clk 0:02:50.1]} 9. Bg3 {[%clk 0:02:53.3]} 9... Nh5 {[%clk 0:02:50.8]}
10. Be5 {[%clk 0:02:51]} 10... f6 {[%clk 0:02:35.5]} 11. Bg3 {[%clk 0:02:50.5]}
11... Nxg3 {[%clk 0:02:35.4]} 12. hxg3 {[%clk 0:02:50.5]} 12... Bg7 {[%clk
0:02:33.7]} 13. Bd3 {[%clk 0:02:49.8]} 13... Nf8 {[%clk 0:02:30.3]} 14. Qc2
{[%clk 0:02:47.1]} 14... Kf7 {[%clk 0:02:24.4]} 15. O-O-O {[%clk 0:02:43.6]}
15... a5 {[%clk 0:02:24.1]} 16. e4 {[%clk 0:02:41.1]} 16... b5 {[%clk
0:02:18.4]} 17. exd5 {[%clk 0:02:39.6]} 17... cxd5 {[%clk 0:02:17]} 18. Bxb5
{[%clk 0:02:38.5]} 18... Be6 {[%clk 0:02:05.5]} 19. Kb1 {[%clk 0:02:36.7]} 19...
Qb6 {[%clk 0:01:57.2]} 20. Rhe1 {[%clk 0:02:33.6]} 20... a4 {[%clk 0:01:50.5]}
21. Bxa4 {[%clk 0:02:29.1]} 21... Ng6 {[%clk 0:01:45.9]} 22. Bb3 {[%clk
0:02:26.9]} 22... Rhd8 {[%clk 0:01:42.8]} 23. Re3 {[%clk 0:02:17.1]} 23... Ne7
{[%clk 0:01:41.7]} 24. Qe2 {[%clk 0:01:57.8]} 24... Bf5+ {[%clk 0:01:39.8]} 25.
Bc2 {[%clk 0:01:57.2]} 25... Bxc2+ {[%clk 0:01:36]} 26. Qxc2 {[%clk 0:01:56.2]}
26... Nc6 {[%clk 0:01:36.2]} 27. Qf5 {[%clk 0:01:47.7]} 27... Nb4 {[%clk
0:01:32.3]} 28. Rde1 {[%clk 0:01:42.3]} 28... Ra7 {[%clk 0:01:22.9]} 29. Re6
{[%clk 0:01:37.6]} 29... Qa5 {[%clk 0:01:17.9]} 30. a3 {[%clk 0:01:35.6]} 30...
Rb8 {[%clk 0:01:09.9]} 31. Ne5+ {[%clk 0:01:29]} 31... Kg8 {[%clk 0:01:07.1]}
32. Nd7 {[%clk 0:01:16.6]} 32... Rxd7 {[%clk 0:00:35.1]} 33. Re8+ {[%clk
0:01:13.3]} 33... Rxe8 {[%clk 0:00:35.1]} 34. Rxe8+ {[%clk 0:01:12.4]} 1-0

[Event "Late-Titled-Tuesday-Blitz-September-05-2023"]
[Site "Chess.com"]
[Date "2023.09.05"]
[Round "4"]
[White "The_Machine04"]
[Black "SilverCityIndigo"]
[Result "1-0"]
[WhiteElo "2610"]
[BlackElo "2311"]
[TimeControl "180+1"]
[EndTime "14:38:21 PDT"]
[Termination "The_Machine04 won by checkmate"]

1. d4 {[%clk 0:03:00.9]} 1... d5 {[%clk 0:02:57.8]} 2. Nf3 {[%clk 0:03:00.8]}
2... Nf6 {[%clk 0:02:58.1]} 3. e3 {[%clk 0:03:00.6]} 3... Bg4 {[%clk 0:02:52.5]}
4. h3 {[%clk 0:03:00.2]} 4... Bh5 {[%clk 0:02:51.9]} 5. g4 {[%clk 0:03:00.5]}
5... Bg6 {[%clk 0:02:52.3]} 6. Ne5 {[%clk 0:03:01.4]} 6... Nbd7 {[%clk
0:02:51.8]} 7. h4 {[%clk 0:03:00.9]} 7... h5 {[%clk 0:02:34.9]} 8. Nxg6 {[%clk
0:03:00.3]} 8... fxg6 {[%clk 0:02:35.4]} 9. g5 {[%clk 0:02:58.9]} 9... Ne4
{[%clk 0:02:35.2]} 10. Nd2 {[%clk 0:02:58.9]} 10... Nd6 {[%clk 0:02:30.2]} 11.
Bd3 {[%clk 0:02:43.8]} 11... Kf7 {[%clk 0:02:27.3]} 12. Qf3+ {[%clk 0:02:42.7]}
12... Kg8 {[%clk 0:02:20.3]} 13. Bxg6 {[%clk 0:02:27.4]} 13... c6 {[%clk
0:02:19.1]} 14. Bxh5 {[%clk 0:02:22.3]} 14... e5 {[%clk 0:02:16.5]} 15. Bg4
{[%clk 0:02:22.7]} 15... e4 {[%clk 0:02:01.6]} 16. Be6+ {[%clk 0:02:20.5]} 16...
Nf7 {[%clk 0:00:16.3]} 17. Bxf7+ {[%clk 0:02:13]} 17... Kh7 {[%clk 0:00:10.5]}
18. g6+ {[%clk 0:01:09.8]} 18... Kh6 {[%clk 0:00:09.7]} 19. Qf4+ {[%clk
0:01:09.9]} 19... Kh5 {[%clk 0:00:10.3]} 20. Nf1 {[%clk 0:01:07.6]} 20... Qxh4
{[%clk 0:00:02.9]} 21. Ng3# {[%clk 0:01:01.6]} 1-0

[Event "Late-Titled-Tuesday-Blitz-September-05-2023"]
[Site "Chess.com"]
[Date "2023.09.05"]
[Round "4"]
[White "KejJaj"]
[Black "Chessdemon2019"]
[Result "1-0"]
[WhiteElo "2205"]
[BlackElo "2369"]
[TimeControl "180+1"]
[EndTime "14:38:27 PDT"]
[Termination "KejJaj won by resignation"]

1. d4 {[%clk 0:03:00.9]} 1... e6 {[%clk 0:02:59.7]} 2. Bf4 {[%clk 0:03:01]} 2...
f5 {[%clk 0:02:59.4]} 3. e3 {[%clk 0:02:58.8]} 3... Nf6 {[%clk 0:02:59.5]} 4.
Bd3 {[%clk 0:02:58.6]} 4... d6 {[%clk 0:02:59.7]} 5. Nf3 {[%clk 0:02:54.2]} 5...
g6 {[%clk 0:02:59.7]} 6. c4 {[%clk 0:02:47.9]} 6... Bg7 {[%clk 0:02:58.1]} 7.
Nc3 {[%clk 0:02:47]} 7... O-O {[%clk 0:02:58]} 8. h3 {[%clk 0:02:37.5]} 8... Qe7
{[%clk 0:02:57.3]} 9. O-O {[%clk 0:02:31.7]} 9... Nbd7 {[%clk 0:02:56.3]} 10. e4
{[%clk 0:01:51.4]} 10... fxe4 {[%clk 0:02:53.2]} 11. Bxd6 {[%clk 0:01:07.1]}
11... cxd6 {[%clk 0:02:40.5]} 12. Bxe4 {[%clk 0:00:55.8]} 12... Nxe4 {[%clk
0:02:39.7]} 13. Nxe4 {[%clk 0:00:56.7]} 13... Nf6 {[%clk 0:02:40.2]} 14. Nc3
{[%clk 0:00:50.9]} 14... e5 {[%clk 0:02:35.8]} 15. Re1 {[%clk 0:00:50]} 15... e4
{[%clk 0:02:34.4]} 16. Ng5 {[%clk 0:00:47.3]} 16... Qc7 {[%clk 0:02:27.9]} 17.
Qb3 {[%clk 0:00:44.2]} 17... Kh8 {[%clk 0:02:24.6]} 18. Ngxe4 {[%clk 0:00:41.4]}
18... Nxe4 {[%clk 0:02:24.8]} 19. Nxe4 {[%clk 0:00:42.3]} 19... Bxd4 {[%clk
0:02:19.6]} 20. Rad1 {[%clk 0:00:41.7]} 20... Qb6 {[%clk 0:02:13.4]} 21. Qd3
{[%clk 0:00:35.3]} 21... Bg7 {[%clk 0:02:09.8]} 22. Nxd6 {[%clk 0:00:33.1]}
22... Bf5 {[%clk 0:02:10.1]} 23. Qd5 {[%clk 0:00:24.7]} 23... Qc7 {[%clk
0:01:48.9]} 24. g4 {[%clk 0:00:23]} 24... Bd7 {[%clk 0:01:47.5]} 25. Nf7+ {[%clk
0:00:20]} 25... Rxf7 {[%clk 0:01:47.8]} 26. Qxf7 {[%clk 0:00:20.7]} 26... Rf8
{[%clk 0:01:47.1]} 27. Qxd7 {[%clk 0:00:20.2]} 27... Qb6 {[%clk 0:01:43.2]} 28.
Re2 {[%clk 0:00:17.6]} 28... Bxb2 {[%clk 0:01:36.7]} 29. Rb1 {[%clk 0:00:16.5]}
29... Qc5 {[%clk 0:01:20.3]} 30. Rbxb2 {[%clk 0:00:16.4]} 30... Qxc4 {[%clk
0:01:20.7]} 31. Rbc2 {[%clk 0:00:15.8]} 31... Qf4 {[%clk 0:01:18.2]} 32. Rc8
{[%clk 0:00:14.9]} 32... Qf6 {[%clk 0:01:12.5]} 33. Rxf8+ {[%clk 0:00:13.9]}
33... Qxf8 {[%clk 0:01:12.8]} 34. Re8 {[%clk 0:00:14.1]} 1-0

[Event "Late-Titled-Tuesday-Blitz-September-05-2023"]
[Site "Chess.com"]
[Date "2023.09.05"]
[Round "4"]
[White "Durarbayli"]
[Black "HansOnTwitch"]
[Result "1-0"]
[WhiteElo "2877"]
[BlackElo "3006"]
[TimeControl "180+1"]
[EndTime "14:38:28 PDT"]
[Termination "Durarbayli won by checkmate"]

1. e4 {[%clk 0:03:00.9]} 1... c5 {[%clk 0:02:59.4]} 2. Nf3 {[%clk 0:02:59.9]}
2... Nc6 {[%clk 0:02:59]} 3. d4 {[%clk 0:02:59.3]} 3... cxd4 {[%clk 0:02:57.1]}
4. Nxd4 {[%clk 0:03:00.2]} 4... Nf6 {[%clk 0:02:57]} 5. Nc3 {[%clk 0:03:00.8]}
5... d6 {[%clk 0:02:57.7]} 6. f3 {[%clk 0:03:00.4]} 6... h5 {[%clk 0:02:44.2]}
7. Be3 {[%clk 0:02:57.6]} 7... e6 {[%clk 0:02:44.3]} 8. Qd2 {[%clk 0:02:53.7]}
8... a6 {[%clk 0:02:44.2]} 9. O-O-O {[%clk 0:02:53.2]} 9... Qc7 {[%clk
0:02:44.8]} 10. Kb1 {[%clk 0:02:47.8]} 10... b5 {[%clk 0:02:42.2]} 11. Nxc6
{[%clk 0:02:48]} 11... Qxc6 {[%clk 0:02:41.9]} 12. Ne2 {[%clk 0:02:48.9]} 12...
Bb7 {[%clk 0:02:36.2]} 13. Rc1 {[%clk 0:02:48.1]} 13... Qc7 {[%clk 0:02:32.9]}
14. Nd4 {[%clk 0:02:11.9]} 14... d5 {[%clk 0:02:30.7]} 15. e5 {[%clk 0:02:05.4]}
15... Nd7 {[%clk 0:02:28.4]} 16. f4 {[%clk 0:02:05.9]} 16... g6 {[%clk
0:02:27.9]} 17. g3 {[%clk 0:01:58.2]} 17... Nb6 {[%clk 0:02:26]} 18. h3 {[%clk
0:01:56.2]} 18... Nc4 {[%clk 0:02:25.2]} 19. Bxc4 {[%clk 0:01:56.4]} 19... dxc4
{[%clk 0:02:22]} 20. Rhd1 {[%clk 0:01:53]} 20... c3 {[%clk 0:02:21.3]} 21. Qd3
{[%clk 0:01:28.3]} 21... Rc8 {[%clk 0:02:07.7]} 22. Nxe6 {[%clk 0:01:23.3]}
22... fxe6 {[%clk 0:01:41.6]} 23. Qxg6+ {[%clk 0:01:23.1]} 23... Ke7 {[%clk
0:01:38.3]} 24. Qf6+ {[%clk 0:01:15]} 24... Ke8 {[%clk 0:01:38.4]} 25. Qxh8
{[%clk 0:01:07.3]} 25... cxb2 {[%clk 0:01:38.4]} 26. Qxh5+ {[%clk 0:01:07.2]}
26... Ke7 {[%clk 0:01:37.2]} 27. Qh7+ {[%clk 0:00:59.3]} 27... Ke8 {[%clk
0:01:31.3]} 28. Qg6+ {[%clk 0:00:59.2]} 28... Ke7 {[%clk 0:01:31.6]} 29. Qf6+
{[%clk 0:00:58.7]} 29... Ke8 {[%clk 0:01:32.3]} 30. Qxe6+ {[%clk 0:00:56.8]}
30... Be7 {[%clk 0:01:31.6]} 31. Qg8+ {[%clk 0:00:56.1]} 31... Bf8 {[%clk
0:01:31.6]} 32. Qg6+ {[%clk 0:00:54.4]} 32... Ke7 {[%clk 0:01:30.8]} 33. Rd6
{[%clk 0:00:41.1]} 33... bxc1=Q+ {[%clk 0:01:28.4]} 34. Bxc1 {[%clk 0:00:37.7]}
34... Qc4 {[%clk 0:01:25.5]} 35. Qf6+ {[%clk 0:00:23.2]} 35... Ke8 {[%clk
0:01:25.2]} 36. Qg6+ {[%clk 0:00:24.1]} 36... Ke7 {[%clk 0:01:25.3]} 37. Qh7+
{[%clk 0:00:08.8]} 37... Ke8 {[%clk 0:01:23.9]} 38. Qd7# {[%clk 0:00:08.7]} 1-0

[Event "Late-Titled-Tuesday-Blitz-September-05-2023"]
[Site "Chess.com"]
[Date "2023.09.05"]
[Round "4"]
[White "TheMagician"]
[Black "Roedor"]
[Result "0-1"]
[WhiteElo "2078"]
[BlackElo "2425"]
[TimeControl "180+1"]
[EndTime "14:38:33 PDT"]
[Termination "Roedor won on time"]

1. d4 {[%clk 0:03:00.9]} 1... Nf6 {[%clk 0:02:57.3]} 2. c4 {[%clk 0:03:00.1]}
2... g6 {[%clk 0:02:57.4]} 3. Nc3 {[%clk 0:03:00]} 3... Bg7 {[%clk 0:02:57.8]}
4. e4 {[%clk 0:03:00.2]} 4... d6 {[%clk 0:02:58.1]} 5. f3 {[%clk 0:03:00.3]}
5... O-O {[%clk 0:02:58.2]} 6. Be3 {[%clk 0:03:00.5]} 6... c5 {[%clk 0:02:58.5]}
7. Nge2 {[%clk 0:02:58.6]} 7... Nc6 {[%clk 0:02:57.4]} 8. Qd2 {[%clk 0:02:58.7]}
8... Qa5 {[%clk 0:02:54.9]} 9. Rd1 {[%clk 0:02:42.4]} 9... e5 {[%clk 0:02:51.4]}
10. dxe5 {[%clk 0:02:21.9]} 10... dxe5 {[%clk 0:02:49.3]} 11. b3 {[%clk
0:02:19.9]} 11... Nd4 {[%clk 0:02:48.2]} 12. Kf2 {[%clk 0:02:00.6]} 12... Nh5
{[%clk 0:02:36.3]} 13. Nd5 {[%clk 0:01:56.9]} 13... Qd8 {[%clk 0:02:35.1]} 14.
b4 {[%clk 0:01:43.3]} 14... b6 {[%clk 0:02:21]} 15. bxc5 {[%clk 0:01:33.6]}
15... bxc5 {[%clk 0:02:21.9]} 16. Nec3 {[%clk 0:01:17.2]} 16... Rb8 {[%clk
0:02:07.3]} 17. Bg5 {[%clk 0:01:10.9]} 17... f6 {[%clk 0:02:04.8]} 18. Bh6
{[%clk 0:01:06.3]} 18... Bxh6 {[%clk 0:01:41]} 19. Qxh6 {[%clk 0:01:06.1]} 19...
f5 {[%clk 0:01:41.6]} 20. h4 {[%clk 0:00:33.1]} 20... Be6 {[%clk 0:01:15]} 21.
exf5 {[%clk 0:00:30.2]} 21... Bxf5 {[%clk 0:01:04.7]} 22. Rd2 {[%clk 0:00:19.8]}
22... e4 {[%clk 0:01:01.5]} 0-1

[Event "Late-Titled-Tuesday-Blitz-September-05-2023"]
[Site "Chess.com"]
[Date "2023.09.05"]
[Round "4"]
[White "JacksterThePro"]
[Black "Tomytoteph"]
[Result "1-0"]
[WhiteElo "2437"]
[BlackElo "2618"]
[TimeControl "180+1"]
[EndTime "14:38:38 PDT"]
[Termination "JacksterThePro won by resignation"]

1. e4 {[%clk 0:03:00.9]} 1... c5 {[%clk 0:02:59.2]} 2. c3 {[%clk 0:02:58.5]}
2... g6 {[%clk 0:02:59.2]} 3. d4 {[%clk 0:02:58.7]} 3... cxd4 {[%clk 0:03:00.1]}
4. cxd4 {[%clk 0:02:59.2]} 4... d5 {[%clk 0:02:59.8]} 5. e5 {[%clk 0:02:57.7]}
5... Bg7 {[%clk 0:02:59.6]} 6. Nc3 {[%clk 0:02:58.3]} 6... Nc6 {[%clk
0:02:58.6]} 7. Nf3 {[%clk 0:02:58.1]} 7... Nh6 {[%clk 0:02:57.6]} 8. h3 {[%clk
0:02:46.2]} 8... O-O {[%clk 0:02:57]} 9. Be2 {[%clk 0:02:44.1]} 9... Bf5 {[%clk
0:02:56.4]} 10. O-O {[%clk 0:02:43.1]} 10... Be4 {[%clk 0:02:54.9]} 11. Ng5
{[%clk 0:02:36.2]} 11... Bf5 {[%clk 0:02:47]} 12. Nf3 {[%clk 0:02:32.4]} 12...
Rc8 {[%clk 0:02:46]} 13. Be3 {[%clk 0:02:30.8]} 13... Be4 {[%clk 0:02:46.1]} 14.
Ng5 {[%clk 0:02:25.2]} 14... Bf5 {[%clk 0:02:43.8]} 15. Rc1 {[%clk 0:02:24.2]}
15... f6 {[%clk 0:02:38.5]} 16. exf6 {[%clk 0:02:23.9]} 16... exf6 {[%clk
0:02:38.9]} 17. Nf3 {[%clk 0:02:20.8]} 17... Nf7 {[%clk 0:02:39.4]} 18. Qb3
{[%clk 0:02:15]} 18... Be4 {[%clk 0:02:39.7]} 19. Qxb7 {[%clk 0:02:04.7]} 19...
Nd6 {[%clk 0:02:39.3]} 20. Qb3 {[%clk 0:02:04.5]} 20... Rb8 {[%clk 0:02:38.7]}
21. Qa3 {[%clk 0:01:56.4]} 21... Qd7 {[%clk 0:02:38.1]} 22. Nxe4 {[%clk
0:01:46.4]} 22... Nxe4 {[%clk 0:02:34.3]} 23. b3 {[%clk 0:01:35.2]} 23... Rfc8
{[%clk 0:02:24.6]} 24. Rc2 {[%clk 0:01:29.7]} 24... f5 {[%clk 0:02:19.3]} 25.
Rfc1 {[%clk 0:01:25.3]} 25... Bf8 {[%clk 0:02:19.1]} 26. Qa4 {[%clk 0:01:05.7]}
26... Rb4 {[%clk 0:02:16.3]} 27. Qa6 {[%clk 0:01:04.7]} 27... Rb6 {[%clk
0:02:16.1]} 28. Qa4 {[%clk 0:00:53.4]} 28... Bd6 {[%clk 0:02:15.3]} 29. Bb5
{[%clk 0:00:50.4]} 29... f4 {[%clk 0:02:06.9]} 30. Bxc6 {[%clk 0:00:48.8]} 30...
Rcxc6 {[%clk 0:02:03.8]} 31. Rxc6 {[%clk 0:00:47.3]} 31... Rxc6 {[%clk
0:02:03.3]} 32. Qxc6 {[%clk 0:00:46.7]} 32... Qxc6 {[%clk 0:02:03.6]} 33. Rxc6
{[%clk 0:00:46.8]} 33... fxe3 {[%clk 0:02:04.5]} 34. fxe3 {[%clk 0:00:46.4]}
34... Ba3 {[%clk 0:02:02.3]} 35. Kf1 {[%clk 0:00:39.5]} 35... Bb4 {[%clk
0:01:57]} 36. Ke2 {[%clk 0:00:37.7]} 36... Ng3+ {[%clk 0:01:57.2]} 37. Kd3
{[%clk 0:00:36.9]} 37... a5 {[%clk 0:01:55.8]} 38. Ne5 {[%clk 0:00:34.7]} 38...
Ne4 {[%clk 0:01:56.2]} 39. Rc8+ {[%clk 0:00:33.5]} 39... Kg7 {[%clk 0:01:56.1]}
40. Rc7+ {[%clk 0:00:32.3]} 40... Kg8 {[%clk 0:01:56.3]} 41. Rd7 {[%clk
0:00:29.8]} 41... Nf2+ {[%clk 0:01:55.6]} 42. Ke2 {[%clk 0:00:28.8]} 42... Ne4
{[%clk 0:01:56.1]} 43. Kf3 {[%clk 0:00:28.1]} 43... Ng5+ {[%clk 0:01:56.2]} 44.
Ke2 {[%clk 0:00:21.3]} 44... Ne4 {[%clk 0:01:56.3]} 45. Kd1 {[%clk 0:00:18.5]}
45... g5 {[%clk 0:01:54.7]} 46. Kc2 {[%clk 0:00:18.5]} 46... Nf6 {[%clk
0:01:54.4]} 47. Ra7 {[%clk 0:00:16.9]} 47... h5 {[%clk 0:01:53.9]} 48. Nc6
{[%clk 0:00:17]} 48... Be1 {[%clk 0:01:53]} 49. Nxa5 {[%clk 0:00:16.9]} 49... g4
{[%clk 0:01:53.7]} 50. hxg4 {[%clk 0:00:16.1]} 50... Nxg4 {[%clk 0:01:54.6]} 51.
Kd3 {[%clk 0:00:16.2]} 51... Nf2+ {[%clk 0:01:54.7]} 52. Ke2 {[%clk 0:00:15.7]}
52... Bxa5 {[%clk 0:01:55.2]} 53. Kxf2 {[%clk 0:00:14.3]} 53... Bb6 {[%clk
0:01:54.6]} 54. Rd7 {[%clk 0:00:14.7]} 1-0

[Event "Late-Titled-Tuesday-Blitz-September-05-2023"]
[Site "Chess.com"]
[Date "2023.09.05"]
[Round "4"]
[White "farzadbfd"]
[Black "FeketeBarika"]
[Result "1-0"]
[WhiteElo "2674"]
[BlackElo "2403"]
[TimeControl "180+1"]
[EndTime "14:38:38 PDT"]
[Termination "farzadbfd won by resignation"]

1. d4 {[%clk 0:03:00.9]} 1... Nf6 {[%clk 0:02:32.3]} 2. Nf3 {[%clk 0:02:59.1]}
2... e6 {[%clk 0:02:32.5]} 3. c4 {[%clk 0:02:58.9]} 3... d5 {[%clk 0:02:32.9]}
4. Nc3 {[%clk 0:02:59.2]} 4... Be7 {[%clk 0:02:32.1]} 5. Bg5 {[%clk 0:02:59.6]}
5... O-O {[%clk 0:02:31.8]} 6. e3 {[%clk 0:03:00.1]} 6... h6 {[%clk 0:02:32.3]}
7. Bh4 {[%clk 0:02:56.3]} 7... Ne4 {[%clk 0:02:32.6]} 8. Bxe7 {[%clk 0:02:55]}
8... Qxe7 {[%clk 0:02:33.5]} 9. Rc1 {[%clk 0:02:52.6]} 9... Nxc3 {[%clk
0:02:33.5]} 10. bxc3 {[%clk 0:02:49.7]} 10... dxc4 {[%clk 0:02:34.4]} 11. Bxc4
{[%clk 0:02:50.2]} 11... b6 {[%clk 0:02:34.4]} 12. O-O {[%clk 0:02:49.4]} 12...
Nd7 {[%clk 0:02:35.1]} 13. a4 {[%clk 0:02:49.1]} 13... c5 {[%clk 0:02:35.6]} 14.
a5 {[%clk 0:02:47]} 14... Bb7 {[%clk 0:02:35.3]} 15. Qe2 {[%clk 0:02:43]} 15...
a6 {[%clk 0:02:15.3]} 16. axb6 {[%clk 0:02:41.8]} 16... Nxb6 {[%clk 0:02:16.2]}
17. Bd3 {[%clk 0:02:32.1]} 17... Nd5 {[%clk 0:02:09.1]} 18. Bb1 {[%clk
0:02:06.2]} 18... Rfb8 {[%clk 0:01:58.5]} 19. Qd3 {[%clk 0:02:00.5]} 19... g6
{[%clk 0:01:56.6]} 20. Ne5 {[%clk 0:02:00.9]} 20... Qg5 {[%clk 0:01:43.2]} 21.
e4 {[%clk 0:01:42.5]} 21... Nf4 {[%clk 0:01:34.6]} 22. Qf3 {[%clk 0:01:43]}
22... f6 {[%clk 0:00:31]} 23. Nd7 {[%clk 0:01:29.5]} 23... Rd8 {[%clk
0:00:29.6]} 24. Nxc5 {[%clk 0:01:28.1]} 24... Bc6 {[%clk 0:00:29.4]} 25. h4
{[%clk 0:01:25.3]} 25... Qxh4 {[%clk 0:00:26.8]} 26. g3 {[%clk 0:01:24.7]} 26...
Nh3+ {[%clk 0:00:26.8]} 27. Kg2 {[%clk 0:01:24.4]} 27... Qg5 {[%clk 0:00:19]}
28. Nxe6 {[%clk 0:01:19.8]} 28... Nf4+ {[%clk 0:00:10.8]} 29. Qxf4 {[%clk
0:01:16.8]} 29... Qxf4 {[%clk 0:00:11.1]} 30. Nxf4 {[%clk 0:01:17.7]} 30... g5
{[%clk 0:00:09.2]} 31. Ne6 {[%clk 0:01:16.3]} 31... Re8 {[%clk 0:00:09.8]} 32.
Nc7 {[%clk 0:01:16.1]} 32... Rxe4 {[%clk 0:00:06.6]} 33. Bxe4 {[%clk 0:01:15.1]}
33... Bxe4+ {[%clk 0:00:07.5]} 34. f3 {[%clk 0:01:15.9]} 1-0